fUST/lending_fUST_20240910
["ID","MTS","AMOUNT","RATE_DAILY","PERIOD"]
[337696829,1725972639926,-500.0,0.00019656,2]
[337696830,1725972639935,-500.0,0.00019656,2]
[337696831,1725972639945,-500.0,0.00019656,2]
[337696832,1725972639955,-500.0,0.00019656,2]
[337696833,1725972639966,-250.0,0.00019656,2]
[337696834,1725972639975,-500.0,0.00019656,2]
[337696835,1725972639985,-500.0,0.00019656,2]
[337696836,1725972639994,-500.0,0.00019656,2]
[337696837,1725972640004,-500.0,0.00019656,2]
[337696838,1725972640013,-500.0,0.00019656,2]
[337696839,1725972640023,-500.0,0.00019656,2]
[337696840,1725972640033,-326.87371076,0.00019656,2]
[337696841,1725972640045,-500.0,0.00019656,2]
[337696842,1725972640055,-500.0,0.00019656,2]
[337696843,1725972640064,-500.0,0.00019656,2]
[337696844,1725972640074,-1063.38,0.00019656,2]
[337696845,1725972640085,-500.0,0.00019656,2]
[337696846,1725972640095,-500.0,0.00019656,2]
[337696847,1725972640105,-500.0,0.00019656,2]
[337696848,1725972640115,-256.41,0.00019656,2]
[337696849,1725972640124,-516.99331206,0.00019656,2]
[337696850,1725972640134,-500.0,0.00019656,2]
[337696851,1725972640146,-500.0,0.00019656,2]
[337696852,1725972640156,-278.25384775,0.00019656,2]
[337696853,1725972640165,-500.0,0.00019656,2]
[337696854,1725972640175,-500.0,0.00019656,2]
[337696855,1725972640184,-500.0,0.00019656,2]
[337696856,1725972640195,-500.0,0.00019656,2]
[337696857,1725972640206,-1370.56,0.00019656,2]
[337696858,1725972640216,-500.0,0.00019656,2]
[337696859,1725972640227,-500.0,0.00019656,2]
[337696860,1725972640236,-500.0,0.00019656,2]
[337696861,1725972640246,-500.0,0.00019656,2]
[337696862,1725972640257,-500.0,0.00019656,2]
[337696863,1725972640267,-538.27,0.00019656,2]
[337696864,1725972640276,-533.10678046,0.00019656,2]
[337696865,1725972640285,-500.0,0.00019656,2]
[337696866,1725972640295,-500.0,0.00019656,2]
[337696867,1725972640304,-177.45995214,0.00019656,2]
[337696868,1725972640314,-565.05,0.00019656,2]
[337696869,1725972640324,-500.0,0.00019656,2]
[337696870,1725972640333,-505.37629822,0.00019656,2]
[337696871,1725972640342,-500.0,0.00019656,2]
[337696872,1725972640354,-500.0,0.00019656,2]
[337696873,1725972640364,-299.99787004,0.00019656,2]
[337696874,1725972640373,-500.0,0.00019656,2]
[337696875,1725972640383,-500.0,0.00019656,2]
[337696876,1725972640393,-500.0,0.00019656,2]
[337696877,1725972640402,-500.0,0.00019656,2]
[337696878,1725972640412,-607.25,0.00019656,2]
[337696879,1725972640422,-500.0,0.00019656,2]
[337696880,1725972640431,-500.0,0.00019656,2]
[337696881,1725972640441,-500.0,0.00019656,2]
[337696882,1725972640452,-500.0,0.00019656,2]
[337696883,1725972640463,-500.0,0.00019656,2]
[337696884,1725972640472,-500.0,0.00019656,2]
[337696885,1725972640482,-687.29,0.00019656,2]
[337696886,1725972640492,-2474.58,0.00019656,2]
[337696887,1725972640501,-664.36,0.00019656,2]
[337696888,1725972640511,-500.0,0.00019656,2]
[337696889,1725972640521,-500.0,0.00019656,2]
[337696890,1725972640530,-421.5997197,0.00019656,2]
[337696891,1725972640540,-5401.43,0.00019656,2]
[337696892,1725972640550,-500.0,0.00019656,2]
[337696893,1725972640560,-526.09,0.00019656,2]
[337696894,1725972640569,-1037.15,0.00019656,2]
[337696895,1725972640579,-500.0,0.00019656,2]
[337696896,1725972640589,-1204.69,0.00019656,2]
[337696897,1725972640599,-1222.61,0.00019656,2]
[337696898,1725972640608,-505.87537366,0.00019656,2]
[337696899,1725972640618,-549.81,0.00019656,2]
[337696900,1725972640628,-500.0,0.00019656,2]
[337696901,1725972640637,-500.0,0.00019656,2]
[337696902,1725972640647,-500.0,0.00019656,2]
[337696903,1725972640656,-500.0,0.00019656,2]
[337696904,1725972640666,-989.99,0.00019656,2]
[337696905,1725972640676,-500.0,0.00019656,2]
[337696906,1725972640685,-1378.81,0.00019656,2]
[337696907,1725972640695,-500.0,0.00019656,2]
[337696908,1725972640706,-178.01214032,0.00019656,2]
[337696909,1725972640715,-500.0,0.00019656,2]
[337696910,1725972640725,-500.0,0.00019656,2]
[337696911,1725972640734,-500.0,0.00019656,2]
[337696912,1725972640743,-13530.1618694,0.00019657,3]
[337696913,1725972640753,-500.0,0.00019657,2]
[337696914,1725972640763,-500.0,0.00019657,2]
[337696915,1725972640772,-500.0,0.00019657,2]
[337696916,1725972640782,-500.0,0.00019657,2]
[337696917,1725972640792,-1192.85,0.00019657,2]
[337696918,1725972640802,-643.0,0.00019657,2]
[337696919,1725972640812,-500.0,0.00019657,2]
[337696920,1725972640821,-507.01,0.00019657,2]
[337696921,1725972640831,-500.0,0.00019657,2]
[337696922,1725972640841,-1426.12,0.00019657,2]
[337696923,1725972640850,-500.0,0.00019657,2]
[337696924,1725972640860,-500.0,0.00019657,2]
[337696925,1725972640869,-500.0,0.00019657,2]
[337696926,1725972640879,-500.0,0.00019657,2]
[337696927,1725972640889,-2289.65,0.00019657,2]
[337696928,1725972640898,-500.0,0.00019657,2]
[337696929,1725972640909,-500.0,0.00019657,2]
[337696930,1725972640918,-945.9,0.00019657,2]
[337696931,1725972640928,-590.4,0.00019657,2]
[337696932,1725972640937,-797.89,0.00019657,2]
[337696933,1725972640947,-500.0,0.00019657,2]
[337696934,1725972640956,-500.0,0.00019657,2]
[337696935,1725972640966,-500.0,0.00019657,2]
[337696936,1725972640975,-1579.29,0.00019657,2]
[337696937,1725972640985,-4285.0,0.00019657,2]
[337696938,1725972640995,-503.92364613,0.00019657,2]
[337696939,1725972641004,-500.0,0.00019657,2]
[337696940,1725972641014,-500.0,0.00019657,2]
[337696941,1725972641024,-500.0,0.00019657,2]
[337696942,1725972641034,-3963.03,0.00019657,2]
[337696943,1725972641045,-1526.23,0.00019657,2]
[337696944,1725972641055,-1784.85,0.00019657,2]
[337696945,1725972641064,-500.0,0.00019657,2]
[337696946,1725972641075,-6981.43,0.00019657,2]
[337696947,1725972641085,-386.61339865,0.00019657,2]
[337696948,1725972641095,-886.06,0.00019657,2]
[337696949,1725972641104,-218.15357974,0.00019657,2]
[337696950,1725972641115,-3332.37,0.00019657,2]
[337696951,1725972641125,-502.91650469,0.00019657,2]
[337696952,1725972641134,-503.81408358,0.00019657,2]
[337696953,1725972641143,-3617.89,0.00019657,2]
[337696954,1725972641153,-649.78,0.00019657,2]
[337696955,1725972641163,-1162.3,0.00019657,2]
[337696956,1725972641172,-500.0,0.00019657,2]
[337696957,1725972641182,-500.0,0.00019657,2]
[337696958,1725972641191,-975.73,0.00019657,2]
[337696959,1725972641202,-500.0,0.00019657,2]
[337696960,1725972641211,-1329.54,0.00019657,2]
[337696961,1725972641220,-4565.46,0.00019657,2]
[337696962,1725972641231,-1951.76,0.00019657,2]
[337696963,1725972641241,-500.0,0.00019657,2]
[337696964,1725972641250,-1077.97,0.00019657,2]
[337696965,1725972641259,-1571.36,0.00019657,2]
[337696966,1725972641268,-694.24,0.00019657,2]
[337696967,1725972641277,-467.21879199,0.00019657,2]
[337697004,1725972645988,-500.0,0.00019655,2]
[337697005,1725972645998,-500.0,0.00019656,2]
[337697006,1725972646009,-153.0,0.00019656,2]
[337697013,1725972703288,-1000.0,0.00019557,2]
[337697014,1725972703312,-787.89,0.00019647,3]
[337697015,1725972703335,-500.0,0.00019655,2]
[337697016,1725972703359,-500.0,0.00019655,2]
[337697017,1725972703384,-300.0,0.00019655,2]
[337697018,1725972703408,-500.0,0.00019655,2]
[337697019,1725972703431,-500.0,0.00019655,2]
[337697020,1725972703453,-500.0,0.00019655,2]
[337697021,1725972703475,-1195.01,0.00019655,2]
[337697022,1725972703500,-347.0,0.00019656,2]
[337697023,1725972703522,-500.0,0.00019656,2]
[337697024,1725972703546,-691.1,0.00019656,2]
[337697025,1725972703570,-500.0,0.00019656,2]
[337697026,1725972703595,-6994.07,0.00019656,2]
[337697027,1725972703620,-500.0,0.00019656,2]
[337697028,1725972703644,-500.0,0.00019656,2]
[337697029,1725972703669,-500.0,0.00019656,2]
[337697030,1725972703694,-500.0,0.00019656,2]
[337697031,1725972703719,-500.0,0.00019656,2]
[337697032,1725972703743,-500.0,0.00019656,2]
[337697033,1725972703769,-500.0,0.00019656,2]
[337697034,1725972703793,-500.0,0.00019656,2]
[337697035,1725972703818,-500.0,0.00019656,2]
[337697036,1725972703842,-500.0,0.00019656,2]
[337697037,1725972703866,-500.0,0.00019656,2]
[337697038,1725972703890,-500.0,0.00019656,2]
[337697039,1725972703913,-500.0,0.00019656,2]
[337697040,1725972703937,-500.0,0.00019656,2]
[337697041,1725972703960,-500.0,0.00019656,2]
[337697042,1725972703984,-455.08713374,0.00019656,2]
[337697043,1725972704008,-500.0,0.00019656,2]
[337697044,1725972704031,-729.84286626,0.00019656,2]
[337697052,1725972774963,-165.133204,0.00018797,2]
[337697053,1725972774985,-165.133204,0.00019287,2]
[337697054,1725972775007,-4402.6557331,0.00019321,2]
[337697055,1725972775030,-1000.0,0.00019557,2]
[337697056,1725972775052,-500.0,0.00019655,2]
[337697057,1725972775074,-300.0,0.00019655,2]
[337697058,1725972775099,-500.0,0.00019655,2]
[337697059,1725972775120,-644.16,0.00019655,2]
[337697060,1725972775142,-500.0,0.00019655,2]
[337697061,1725972775166,-529.05,0.00019655,2]
[337697062,1725972775187,-500.0,0.00019655,2]
[337697063,1725972775210,-462.99367383,0.00019655,2]
[337697064,1725972775232,-2371.48,0.00019655,2]
[337697065,1725972775253,-1488.12,0.00019655,2]
[337697066,1725972775432,-157.81713374,0.00019656,2]
[337697067,1725972775456,-500.0,0.00019656,2]
[337697068,1725972775477,-500.0,0.00019656,2]
[337697069,1725972775498,-3925.74,0.00019656,2]
[337697070,1725972775518,-1164.4,0.00019656,2]
[337697071,1725972775539,-500.0,0.00019656,2]
[337697072,1725972775561,-255.6674297,0.00019656,2]
[337697073,1725972775581,-500.0,0.00019656,2]
[337697074,1725972775603,-500.0,0.00019656,2]
[337697075,1725972775624,-500.0,0.00019656,2]
[337697076,1725972775646,-500.0,0.00019656,2]
[337697077,1725972775666,-254.88920494,0.00019656,2]
[337697078,1725972775688,-500.0,0.00019656,2]
[337697079,1725972775708,-534.99324141,0.00019656,2]
[337697080,1725972775730,-500.0,0.00019656,2]
[337697081,1725972775752,-500.0,0.00019656,2]
[337697082,1725972775773,-500.0,0.00019656,2]
[337697083,1725972775797,-500.0,0.00019656,2]
[337697084,1725972775819,-500.0,0.00019656,2]
[337697085,1725972775841,-500.0,0.00019656,2]
[337697086,1725972775864,-500.0,0.00019656,2]
[337697087,1725972775885,-628.14886763,0.00019656,2]
[337697088,1725972775913,-500.0,0.00019656,2]
[337697089,1725972775937,-500.0,0.00019656,2]
[337697090,1725972775964,-500.0,0.00019656,2]
[337697091,1725972775987,-500.0,0.00019656,2]
[337697092,1725972776009,-500.0,0.00019656,2]
[337697093,1725972776031,-250.0,0.00019656,2]
[337697094,1725972776054,-500.0,0.00019656,2]
[337697095,1725972776075,-500.0,0.00019656,2]
[337697096,1725972776101,-500.0,0.00019656,2]
[337697097,1725972776123,-3624.45,0.00019656,2]
[337697098,1725972776146,-500.0,0.00019656,2]
[337697099,1725972776169,-500.0,0.00019656,2]
[337697100,1725972776191,-500.0,0.00019656,2]
[337697101,1725972776212,-500.0,0.00019656,2]
[337697102,1725972776233,-500.0,0.00019656,2]
[337697103,1725972776258,-500.0,0.00019656,2]
[337697104,1725972776281,-500.0,0.00019656,2]
[337697105,1725972776304,-500.0,0.00019656,2]
[337697106,1725972776327,-500.0,0.00019656,2]
[337697107,1725972776350,-500.0,0.00019656,2]
[337697108,1725972776373,-500.0,0.00019656,2]
[337697109,1725972776396,-500.0,0.00019656,2]
[337697110,1725972776417,-500.0,0.00019656,2]
[337697111,1725972776438,-500.0,0.00019656,2]
[337697112,1725972776460,-500.0,0.00019656,2]
[337697113,1725972776482,-500.0,0.00019656,2]
[337697114,1725972776504,-500.0,0.00019656,2]
[337697115,1725972776526,-500.0,0.00019656,2]
[337697116,1725972776550,-500.0,0.00019656,2]
[337697117,1725972776572,-276.43104701,0.00019656,2]
[337697118,1725972776593,-500.0,0.00019656,2]
[337697119,1725972776615,-500.0,0.00019656,2]
[337697120,1725972776636,-500.0,0.00019656,2]
[337697121,1725972776659,-819.98,0.00019656,2]
[337697122,1725972776682,-1331.95,0.00019656,2]
[337697123,1725972776704,-505.40308729,0.00019656,2]
[337697124,1725972776726,-724.43,0.00019656,2]
[337697125,1725972776762,-499.99999999,0.00019656,2]
[337697126,1725972776797,-500.0,0.00019656,2]
[337697127,1725972776833,-502.52196706,0.00019656,2]
[337697128,1725972776868,-500.0,0.00019656,2]
[337697129,1725972776903,-500.0,0.00019656,2]
[337697130,1725972776938,-502.26417928,0.00019656,2]
[337697131,1725972776967,-500.0,0.00019656,2]
[337697132,1725972777000,-500.0,0.00019656,2]
[337697133,1725972777040,-1885.57,0.00019656,2]
[337697134,1725972777071,-500.0,0.00019656,2]
[337697135,1725972777105,-500.0,0.00019656,2]
[337697136,1725972777137,-500.0,0.00019656,2]
[337697137,1725972777168,-500.0,0.00019656,2]
[337697138,1725972777195,-1607.17,0.00019656,2]
[337697139,1725972777226,-1433.15,0.00019656,2]
[337697140,1725972777255,-500.0,0.00019656,2]
[337697141,1725972777283,-500.0,0.00019656,2]
[337697142,1725972777311,-500.0,0.00019656,2]
[337697143,1725972777343,-5086.29802702,0.00019657,3]
[337697145,1725972857678,5156.26518904,0.00028,120]
[337697188,1725973831881,-300.0,0.00017319,2]
[337697189,1725973831892,-300.0,0.00017319,2]
[337697190,1725973831902,-10696.03684653,0.0001732,2]
[337697191,1725973831914,-6410.85878553,0.0001732,2]
[337697194,1725973832276,-907.848621,0.0001732,2]
[337697217,1725973837971,-1585.25574694,0.0001732,2]
[337697219,1725973837981,-8859.467192,0.00017399,2]
[337697222,1725973837993,-197.723306,0.00017498,2]
[337697224,1725973838003,-3000.0,0.00017694,2]
[337697226,1725973838016,-5929.24722517,0.00017708,2]
[337697228,1725973838030,-1250.11263097,0.00017708,2]
[337697231,1725973838042,-316.530891,0.00017808,2]
[337697233,1725973838052,-165.133204,0.00018001,2]
[337697235,1725973838064,-2272.66,0.00018696,2]
[337697237,1725973838074,-5176.37,0.00018696,2]
[337697239,1725973838085,-1037.15,0.00018696,2]
[337697241,1725973838105,-1204.69,0.00018696,2]
[337697243,1725973838120,-1222.61,0.00018696,2]
[337697245,1725973838130,-989.99,0.00018696,2]
[337697247,1725973838140,-192.6280093,0.00018697,2]
[337697249,1725973838152,-5791.18289889,0.00018715,2]
[337697253,1725973838188,-1388.17695723,0.00018715,2]
[337697256,1725973838204,-306.0,0.00018841,2]
[337697257,1725973838214,-153.0,0.00018841,2]
[337697259,1725973838224,-695.45949733,0.00018905,2]
[337697261,1725973838234,-300.0,0.0001891,2]
[337697263,1725973838243,-2272.66,0.0001897,2]
[337697266,1725973838254,-5176.37,0.0001897,2]
[337697268,1725973838273,-1037.15,0.0001897,2]
[337697270,1725973838283,-1204.69,0.0001897,2]
[337697272,1725973838293,-1222.61,0.0001897,2]
[337697274,1725973838303,-989.99,0.0001897,2]
[337697276,1725973838313,-1000.0,0.00019,2]
[337697278,1725973838323,-153.0,0.00019041,2]
[337697280,1725973838337,-420.0,0.00019051,2]
[337697282,1725973838349,-180.173476,0.00019178,2]
[337697284,1725973838360,-274.3762432,0.00019178,2]
[337697286,1725973838369,-2272.66,0.00019244,2]
[337697289,1725973838380,-5176.37,0.00019244,2]
[337697290,1725973838389,-1037.15,0.00019244,2]
[337697292,1725973838399,-1204.69,0.00019244,2]
[337697294,1725973838419,-1222.61,0.00019244,2]
[337697296,1725973838428,-989.99,0.00019244,2]
[337697298,1725973838442,-150.0,0.00019389,2]
[337697301,1725973838453,-695.45949733,0.00019405,2]
[337697303,1725973838464,-857.87,0.00019477,2]
[337697305,1725973838474,-1000.0,0.000195,2]
[337697307,1725973838485,-2272.66,0.00019518,2]
[337697309,1725973838495,-5176.37,0.00019518,2]
[337697311,1725973838504,-1037.15,0.00019518,2]
[337697313,1725973838513,-1112.25817065,0.00019518,2]
[337697315,1725973838526,-92.43182935,0.00019518,2]
[337697317,1725973838536,-1222.61,0.00019518,2]
[337697319,1725973838547,-989.99,0.00019518,2]
[337697321,1725973838556,-5641.33316262,0.00019553,2]
[337697434,1725973840818,-62.25197,0.00019553,2]
[337697435,1725973840835,-2708.37328338,0.00019553,2]
[337697436,1725973840844,-495.49324568,0.00019554,2]
[337697437,1725973840853,-495.49324565,0.00019555,2]
[337697438,1725973840863,-1000.0,0.00019555,2]
[337697439,1725973840873,-495.49324565,0.00019555,2]
[337697440,1725973840882,-2809.24156519,0.00019555,2]
[337697441,1725973840892,-495.49324565,0.00019556,2]
[337697442,1725973840901,-495.49324565,0.00019556,2]
[337697443,1725973840911,-236.46098529,0.00019652,2]
[337697444,1725973840920,-500.0,0.00019652,2]
[337697445,1725973840929,-500.0,0.00019652,2]
[337697446,1725973840939,-500.0,0.00019652,2]
[337697447,1725973840948,-500.0,0.00019652,2]
[337697448,1725973840957,-500.0,0.00019652,2]
[337697449,1725973840967,-500.0,0.00019652,2]
[337697450,1725973840976,-500.0,0.00019652,2]
[337697451,1725973840986,-500.0,0.00019652,2]
[337697452,1725973840995,-500.0,0.00019652,2]
[337697453,1725973841004,-500.0,0.00019652,2]
[337697454,1725973841013,-500.0,0.00019652,2]
[337697455,1725973841023,-500.0,0.00019652,2]
[337697456,1725973841032,-500.0,0.00019652,2]
[337697457,1725973841041,-500.0,0.00019652,2]
[337697458,1725973841051,-500.0,0.00019652,2]
[337697459,1725973841060,-500.0,0.00019652,2]
[337697460,1725973841070,-500.0,0.00019652,2]
[337697461,1725973841079,-500.0,0.00019652,2]
[337697462,1725973841088,-500.0,0.00019652,2]
[337697463,1725973841098,-500.0,0.00019652,2]
[337697464,1725973841107,-500.0,0.00019652,2]
[337697465,1725973841118,-429.05679954,0.00019652,2]
[337697466,1725973841127,-500.0,0.00019652,2]
[337697467,1725973841137,-500.0,0.00019652,2]
[337697468,1725973841147,-500.0,0.00019652,2]
[337697469,1725973841156,-500.0,0.00019652,2]
[337697470,1725973841166,-500.0,0.00019652,2]
[337697471,1725973841175,-500.0,0.00019653,2]
[337697472,1725973841185,-6993.55,0.00019653,2]
[337697473,1725973841194,-3927.29,0.00019653,2]
[337697474,1725973841204,-887.6,0.00019653,2]
[337697475,1725973841213,-1164.32,0.00019653,2]
[337697476,1725973841223,-3624.17,0.00019653,2]
[337697477,1725973841233,-1331.85,0.00019653,2]
[337697478,1725973841243,-694.24,0.00019653,2]
[337697479,1725973841253,-500.0,0.00019653,2]
[337697480,1725973841263,-500.0,0.00019653,2]
[337697481,1725973841273,-1540.2,0.00019653,2]
[337697482,1725973841282,-500.0,0.00019653,2]
[337697483,1725973841293,-1373.44,0.00019653,2]
[337697484,1725973841303,-500.0,0.00019653,2]
[337697485,1725973841314,-1986.12,0.00019653,2]
[337697486,1725973841324,-41849.57052648,0.00019653,2]
[337697547,1725974648160,1000.0,0.00019,19]
[337697550,1725974666166,24890.0,0.00016859,2]
[337697589,1725974943465,2380.0,0.000168,30]
[337697699,1725975032624,-197.7233062,0.00017251,2]
[337697700,1725975032634,-167.283852,0.0001747,2]
[337697701,1725975032644,-167.283852,0.00017601,2]
[337697702,1725975032653,-167.283852,0.00017731,2]
[337697703,1725975032663,-153.0,0.000178,2]
[337697704,1725975032672,-325.704347,0.00017808,2]
[337697705,1725975032682,-167.283852,0.00017861,2]
[337697706,1725975032691,-81.55446511,0.00017991,2]
[337697707,1725975032703,-85.72938689,0.00017991,2]
[337697708,1725975032713,-167.283852,0.00018121,2]
[337697709,1725975032722,-167.283852,0.00018251,2]
[337697710,1725975032732,-167.283852,0.00018381,2]
[337697711,1725975032742,-192.6280093,0.00018554,2]
[337697712,1725975032752,-1727.58845018,0.00018593,2]
[337697713,1725975032762,-300.0,0.00018594,2]
[337697714,1725975032771,-300.0,0.00018594,2]
[337697715,1725975032780,-1000.0,0.00018595,2]
[337697716,1725975032790,-400.69321477,0.00018595,2]
[337697726,1725975038470,-6115.64303898,0.00018592,2]
[337697727,1725975038480,-2599.30678523,0.00018595,2]
[337697728,1725975038489,-4709.24508403,0.00018595,2]
[337697729,1725975038498,-1516.29742933,0.0001862,2]
[337697730,1725975038508,-1727.58845018,0.00018662,2]
[337697731,1725975038517,-500.0,0.00018673,2]
[337697732,1725975038527,-158.75557816,0.00018673,2]
[337697733,1725975038536,-500.0,0.00018673,2]
[337697734,1725975038546,-500.0,0.00018673,2]
[337697735,1725975038556,-496.5300827,0.00018673,2]
[337697736,1725975038566,-501.44848645,0.00018673,2]
[337697737,1725975038575,-185.26532152,0.00018673,2]
[337697738,1725975038584,-500.0,0.00018673,2]
[337697739,1725975038593,-426.82257606,0.00018673,2]
[337697740,1725975038613,-73.17742394,0.00018673,2]
[337697741,1725975038622,-150.0,0.00018684,2]
[337697742,1725975038631,-1069.79,0.00018691,2]
[337697743,1725975038640,-864.34,0.00018691,2]
[337697744,1725975038650,-175.66794384,0.00018691,2]
[337697745,1725975038659,-500.0,0.00018691,2]
[337697746,1725975038669,-500.0,0.00018691,2]
[337697747,1725975038678,-500.0,0.00018691,2]
[337697748,1725975038688,-500.0,0.00018691,2]
[337697749,1725975038698,-499.19541339,0.00018691,2]
[337697750,1725975038711,-500.0,0.00018691,2]
[337697751,1725975038721,-500.0,0.00018691,2]
[337697752,1725975038731,-500.0,0.00018691,2]
[337697753,1725975038740,-500.0,0.00018691,2]
[337697754,1725975038750,-500.0,0.00018691,2]
[337697755,1725975038759,-500.0,0.00018691,2]
[337697756,1725975038768,-500.0,0.00018691,2]
[337697757,1725975038778,-500.0,0.00018691,2]
[337697758,1725975038787,-500.0,0.00018691,2]
[337697759,1725975038796,-500.0,0.00018691,2]
[337697760,1725975038806,-500.0,0.00018691,2]
[337697761,1725975038816,-500.0,0.00018691,2]
[337697762,1725975038825,-500.0,0.00018691,2]
[337697763,1725975038835,-500.0,0.00018691,2]
[337697764,1725975038844,-500.0,0.00018691,2]
[337697765,1725975038853,-500.0,0.00018691,2]
[337697766,1725975038863,-500.0,0.00018691,2]
[337697767,1725975038872,-500.0,0.00018691,2]
[337697768,1725975038882,-500.0,0.00018691,2]
[337697769,1725975038892,-500.0,0.00018691,2]
[337697770,1725975038902,-500.0,0.00018691,2]
[337697771,1725975038911,-500.0,0.00018691,2]
[337697772,1725975038921,-500.0,0.00018691,2]
[337697773,1725975038931,-500.0,0.00018691,2]
[337697774,1725975038941,-500.0,0.00018691,2]
[337697775,1725975038953,-500.0,0.00018691,2]
[337697776,1725975038964,-220.24333102,0.00018691,2]
[337697813,1725975040248,-336.15,0.00018682,3]
[337697815,1725975040261,-279.75666898,0.00018691,2]
[337697817,1725975040270,-500.0,0.00018691,2]
[337697819,1725975040281,-500.0,0.00018691,2]
[337697821,1725975040291,-500.0,0.00018691,2]
[337697822,1725975040301,-500.0,0.00018691,2]
[337697824,1725975040313,-500.0,0.00018691,2]
[337697826,1725975040322,-500.0,0.00018691,2]
[337697829,1725975040334,-500.0,0.00018691,2]
[337697831,1725975040344,-500.0,0.00018691,2]
[337697833,1725975040356,-500.0,0.00018691,2]
[337697834,1725975040365,-500.0,0.00018691,2]
[337697836,1725975040375,-406.6292478,0.00018691,2]
[337697838,1725975040384,-500.0,0.00018691,2]
[337697840,1725975040394,-500.0,0.00018691,2]
[337697842,1725975040405,-500.0,0.00018691,2]
[337697844,1725975040416,-500.0,0.00018691,2]
[337697846,1725975040426,-3927.29,0.00018692,2]
[337697848,1725975040437,-3624.17,0.00018692,2]
[337697850,1725975040447,-500.0,0.00018692,2]
[337697852,1725975040456,-1331.85,0.00018692,2]
[337697854,1725975040465,-6993.55,0.00018692,2]
[337697856,1725975040475,-930.91,0.00018692,2]
[337697858,1725975040484,-1164.32,0.00018692,2]
[337697860,1725975040494,-500.0,0.00018692,2]
[337697862,1725975040503,-1616.15,0.00018692,2]
[337697864,1725975040513,-1988.58,0.00018692,2]
[337697866,1725975040523,-1373.44,0.00018692,2]
[337697867,1725975040532,-728.47,0.00018692,2]
[337697869,1725975040543,-500.0,0.00018692,2]
[337697871,1725975040552,-4529.32,0.00018692,2]
[337697873,1725975040564,-500.0,0.00018692,2]
[337697875,1725975040573,-907.51,0.00018692,2]
[337697877,1725975040583,-500.0,0.00018692,2]
[337697879,1725975040592,-1113.51,0.00018692,2]
[337697881,1725975040602,-53101.07,0.00018692,2]
[337697883,1725975040611,-866.24,0.00018692,2]
[337697885,1725975040621,-1664.04,0.00018692,2]
[337697887,1725975040630,-2077.11,0.00018692,2]
[337697889,1725975040640,-1783.84,0.00018692,2]
[337697890,1725975040650,-500.0,0.00018693,2]
[337697892,1725975040659,-500.0,0.00018693,2]
[337697894,1725975040670,-500.0,0.00018693,2]
[337697896,1725975040679,-500.0,0.00018693,2]
[337697898,1725975040690,-500.0,0.00018693,2]
[337697900,1725975040699,-500.0,0.00018693,2]
[337697902,1725975040708,-500.0,0.00018693,2]
[337697904,1725975040718,-1194.92,0.00018693,2]
[337697906,1725975040729,-644.11,0.00018693,2]
[337697907,1725975040738,-500.0,0.00018693,2]
[337697909,1725975040748,-507.01,0.00018693,2]
[337697911,1725975040757,-500.0,0.00018693,2]
[337697913,1725975040768,-1426.12,0.00018693,2]